[Event "Fall GM Norm Invitational 2020"]
[Site "Charlotte"]
[Date "2020.10.01"]
[Round "1.1"]
[White "Gauri, Shankar"]
[Black "Dragun, Kamil"]
[Result "0-1"]
[ECO "D02"]
[WhiteElo "2353"]
[BlackElo "2561"]
[Annotator "ChessBase"]
[PlyCount "78"]
[EventDate "2020.09.30"]
[EventType "tourn"]
[EventCountry "USA"]
[SourceTitle "playchess.com"]
[Source "ChessBase"]
[SourceQuality "1"]
[TimeControl "5400+30"]

1. Nf3 {[%emt 1:30:30]} d5 {[%emt 1:30:30]} 2. g3 {[%emt 0:00:30]} g6 {[%emt 0:00:30]} 3. Bg2 {[%emt 0:00:30]} Bg7 {[%emt 0:00:30]} 4. d4 {[%emt 0:00:30]} c6 {[%emt 0:00:30]} 5. O-O {[%emt 0:00:30]} Nf6 {[%emt 0:00:30]} 6. a4 {[%emt 0:00:30]} O-O {[%emt 0:00:30]} 7. a5 {[%emt 0:00:30]} Ne4 {[%emt 0:00:30]} 8. c4 {[%emt 0:00:30]} dxc4 {[%emt 0:00:30]} 9. Qc2 {[%emt 0:00:30]} Nd6 {[%emt 0:00:30]} 10. Nbd2 {[%emt 0:00:30]} Be6 {[%emt 0:00:30]} 11. Rd1 {[%emt 0:00:30]} Na6 {[%emt 0:00:30]} 12. Ne5 {[%emt 0:00:30]} Nb5 {[%emt 0:00:30]} 13. Ndf3 {[%emt 0:00:30]} c5 {[%emt 0:00:30]} 14. dxc5 {[%emt 0:00:30]} Qc7 {[%emt 0:00:30]} 15. Bf4 {[%emt 0:00:30]} Qxc5 {[%emt 0:00:30]} 16. Nd7 {[%emt 0:00:30]} Bxd7 {[%emt 0:00:30]} 17. Rxd7 {[%emt 0:00:30]} Nb4 {[%emt 0:00:30]} 18. Qd2 {[%emt 0:00:30]} c3 {[%emt 0:00:30]} 19. bxc3 {[%emt 0:00:30]} Nxc3 {[%emt 0:00:30]} 20. Rc1 {[%emt 0:00:30]} Nbd5 {[%emt 0:00:30]} 21. Rc2 {[%emt 0:00:30]} Qb5 {[%emt 0:00:30]} 22. Bh3 {[%emt 0:00:30]} f5 {[%emt 0:00:30]} 23. Ne5 {[%emt 0:00:30]} Bxe5 {[%emt 0:00:30]} 24. Bxe5 {[%emt 0:00:30]} Qxd7 {[%emt 0:00:30]} 25. Bxc3 {[%emt 0:00:30]} Rad8 {[%emt 0:00:30]} 26. Ba1 {[%emt 0:00:30]} Nf6 {[%emt 0:00:30]} 27. Qc3 {[%emt 0:00:30]} Rc8 {[%emt 0:00:30]} 28. Qb3+ {[%emt 0:00:30]} Qd5 29. Qb1 {[%emt 0:00:30]} Rxc2 {[%emt 0:01:00]} 30. Qxc2 {[%emt 0:00:30]} Rd8 {[%emt 0:00:30]} 31. Bf1 {[%emt 0:00:30]} Qxa5 {[%emt 0:00:30]} 32. Bb2 {[%emt 0:00:30]} Kg7 {[%emt 0:00:30]} 33. e3 {[%emt 0:00:30]} Rd2 {[%emt 0:00:30]} 34. Qb3 {[%emt 0:00:30]} Qd5 {[%emt 0:00:30]} 35. Qa3 {[%emt 0:00:30]} Qd6 {[%emt 0:00:30]} 36. Qc3 {[%emt 0:00:30]} Rd1 {[%emt 0:00:30]} 37. Kg2 {[%emt 0:00:30]} Qd5+ {[%emt 0:00:30]} 38. e4 {[%emt 0:00:30]} Qxe4+ {[%emt 0:00:30]} 39. f3 {[%emt 0:00:30]} Qe1 {[%emt 0:00:30]} 0-1

[Event "Fall GM Norm Invitational 2020"]
[Site "Charlotte"]
[Date "2020.10.01"]
[Round "1.2"]
[White "Ostrovskiy, Aleksandr"]
[Black "Fernandez, Daniel"]
[Result "1-0"]
[ECO "A37"]
[WhiteElo "2427"]
[BlackElo "2470"]
[Annotator "ChessBase"]
[PlyCount "77"]
[EventDate "2020.09.30"]
[EventType "tourn"]
[EventCountry "USA"]
[SourceTitle "playchess.com"]
[Source "ChessBase"]
[SourceQuality "1"]
[TimeControl "5400+30"]

1. c4 {[%emt 1:30:30]} c5 {[%emt 1:30:30]} 2. g3 {[%emt 0:00:30]} Nc6 {[%emt 0:00:30]} 3. Bg2 {[%emt 0:00:30]} g6 {[%emt 0:00:30]} 4. Nc3 {[%emt 0:00:30]} Bg7 {[%emt 0:00:30]} 5. Nf3 {[%emt 0:00:30]} d6 {[%emt 0:00:30]} 6. O-O {[%emt 0:00:30]} e5 {[%emt 0:00:30]} 7. d3 {[%emt 0:00:30]} Nge7 {[%emt 0:00:30]} 8. a3 {[%emt 0:00:30]} a5 {[%emt 0:00:30]} 9. Bd2 {[%emt 0:00:30]} O-O {[%emt 0:00:30]} 10. Rb1 {[%emt 0:00:30]} h6 {[%emt 0:00:30]} 11. Qa4 {[%emt 0:00:30]} Bg4 {[%emt 0:00:30]} 12. Rfc1 {[%emt 0:00:30]} Nd4 {[%emt 0:00:30]} 13. Qd1 {[%emt 0:00:30]} Nxf3+ {[%emt 0:00:30]} 14. exf3 {[%emt 0:00:30]} Bf5 {[%emt 0:00:30]} 15. Ne4 {[%emt 0:00:30]} a4 {[%emt 0:00:30]} 16. b4 {[%emt 0:00:30]} axb3 {[%emt 0:00:30]} 17. Rxb3 {[%emt 0:00:30]} Nc6 {[%emt 0:00:30]} 18. Be3 {[%emt 0:00:30]} Be6 {[%emt 0:00:30]} 19. Nc3 {[%emt 0:00:30]} Nd4 {[%emt 0:00:30]} 20. Bxd4 {[%emt 0:00:30]} exd4 {[%emt 0:00:30]} 21. Ne2 {[%emt 0:00:30]} g5 {[%emt 0:00:30]} 22. f4 {[%emt 0:00:30]} b5 {[%emt 0:00:30]} 23. cxb5 {[%emt 0:00:30]} Bxb3 {[%emt 0:00:30]} 24. Qxb3 {[%emt 0:00:30]} Rb8 {[%emt 0:00:30]} 25. fxg5 {[%emt 0:00:30]} hxg5 {[%emt 0:00:30]} 26. a4 {[%emt 0:00:30]} Re8 {[%emt 0:00:30]} 27. Kf1 {[%emt 0:00:30]} Qa5 {[%emt 0:00:30]} 28. Rc2 {[%emt 0:00:30]} Re5 {[%emt 0:00:30]} 29. Bc6 {[%emt 0:00:30]} Bf6 {[%emt 0:00:30]} 30. g4 {[%emt 0:00:30]} Bd8 {[%emt 0:00:30]} 31. Kg2 {[%emt 0:00:30]} Qe1 {[%emt 0:00:30]} 32. Ng3 {[%emt 0:00:30]} Ba5 {[%emt 0:00:30]} 33. Be4 {[%emt 0:00:30]} Qd1 {[%emt 0:00:30]} 34. h3 {[%emt 0:00:30]} Rd8 {[%emt 0:00:30]} 35. Bf3 {[%emt 0:00:30]} Qe1 {[%emt 0:00:30]} 36. Nf5 {[%emt 0:00:30]} Kf8 {[%emt 0:00:30]} 37. Nh6 {[%emt 0:00:30]} Rd7 {[%emt 0:00:30]} 38. Bc6 {[%emt 0:00:30]} Rc7 {[%emt 0:00:30]} 39. b6 {[%emt 0:00:30]} 1-0

[Event "Fall GM Norm Invitational 2020"]
[Site "Charlotte"]
[Date "2020.10.01"]
[Round "1.3"]
[White "Mista, Aleksander"]
[Black "Stremavicius, Titas"]
[Result "1-0"]
[ECO "B85"]
[WhiteElo "2574"]
[BlackElo "2517"]
[Annotator "ChessBase"]
[PlyCount "65"]
[EventDate "2020.09.30"]
[EventType "tourn"]
[EventCountry "USA"]
[SourceTitle "playchess.com"]
[Source "ChessBase"]
[SourceQuality "1"]
[TimeControl "5400+30"]

1. e4 {[%emt 1:30:30]} c5 {[%emt 1:30:30]} 2. Nf3 {[%emt 0:00:30]} Nc6 {[%emt 0:00:30]} 3. d4 {[%emt 0:00:30]} cxd4 {[%emt 0:00:30]} 4. Nxd4 {[%emt 0:00:30]} Nf6 {[%emt 0:00:30]} 5. Nc3 {[%emt 0:00:30]} e6 {[%emt 0:00:30]} 6. Be2 {[%emt 0:00:30]} d6 {[%emt 0:00:30]} 7. Be3 {[%emt 0:00:30]} a6 {[%emt 0:00:30]} 8. f4 {[%emt 0:00:30]} Bd7 {[%emt 0:00:30]} 9. O-O {[%emt 0:00:30]} Qc7 {[%emt 0:00:30]} 10. Kh1 {[%emt 0:00:30]} Be7 {[%emt 0:00:30]} 11. Qe1 {[%emt 0:00:30]} O-O {[%emt 0:00:30]} 12. Qg3 {[%emt 0:00:30]} b5 {[%emt 0:00:30]} 13. a3 {[%emt 0:00:30]} Kh8 {[%emt 0:00:30]} 14. Rae1 {[%emt 0:00:30]} b4 {[%emt 0:00:30]} 15. axb4 {[%emt 0:00:30]} Nxb4 {[%emt 0:00:30]} 16. e5 {[%emt 0:00:30]} Nfd5 {[%emt 0:00:30]} 17. Nxd5 {[%emt 0:00:30]} Nxd5 {[%emt 0:00:30]} 18. Bg1 {[%emt 0:00:30]} Rab8 {[%emt 0:00:30]} 19. Bxa6 {[%emt 0:00:30]} dxe5 {[%emt 0:00:30]} 20. fxe5 {[%emt 0:00:30]} Rxb2 {[%emt 0:00:30]} 21. Bd3 {[%emt 0:00:30]} Ra2 {[%emt 0:00:30]} 22. Qh3 {[%emt 0:00:30]} g6 {[%emt 0:00:30]} 23. c4 {[%emt 0:00:30]} Nb4 {[%emt 0:00:30]} 24. Bb1 {[%emt 0:00:30]} Ra5 {[%emt 0:00:30]} 25. Qh6 {[%emt 0:00:30]} Qd8 {[%emt 0:00:30]} 26. Nf3 {[%emt 0:00:30]} Kg8 {[%emt 0:00:30]} 27. Rd1 {[%emt 0:00:30]} Qc8 {[%emt 0:00:30]} 28. Be3 {[%emt 0:00:30]} f5 {[%emt 0:00:30]} 29. exf6 {[%emt 0:00:30]} Bxf6 {[%emt 0:00:30]} 30. Bxg6 {[%emt 0:00:30]} hxg6 {[%emt 0:00:30]} 31. Qxg6+ {[%emt 0:00:30]} Kh8 {[%emt 0:00:30]} 32. Ng5 {[%emt 0:00:30]} Bxg5 {[%emt 0:00:30]} 33. Bxg5 {[%emt 0:00:30]} 1-0

[Event "Fall GM Norm Invitational 2020"]
[Site "Charlotte"]
[Date "2020.10.01"]
[Round "1.4"]
[White "Mishra, Abhimanyu"]
[Black "Liang, Jason"]
[Result "1/2-1/2"]
[ECO "C16"]
[WhiteElo "2342"]
[BlackElo "2367"]
[Annotator "ChessBase"]
[PlyCount "133"]
[EventDate "2020.09.30"]
[EventType "tourn"]
[EventCountry "USA"]
[SourceTitle "playchess.com"]
[Source "ChessBase"]
[SourceQuality "1"]
[TimeControl "5400+30"]

1. e4 {[%emt 1:30:30]} e6 {[%emt 1:30:30]} 2. d4 {[%emt 0:00:30]} d5 {[%emt 0:00:30]} 3. Nc3 {[%emt 0:00:30]} Bb4 {[%emt 0:00:30]} 4. e5 {[%emt 0:00:30]} b6 {[%emt 0:00:30]} 5. Qg4 {[%emt 0:00:30]} Kf8 {[%emt 0:00:30]} 6. a3 {[%emt 0:00:30]} Be7 {[%emt 0:00:30]} 7. Nf3 {[%emt 0:00:30]} c5 {[%emt 0:00:30]} 8. Bd3 {[%emt 0:00:30]} Nc6 {[%emt 0:00:30]} 9. O-O {[%emt 0:00:30]} a6 {[%emt 0:00:30]} 10. Bf4 {[%emt 0:00:30]} h5 {[%emt 0:00:30]} 11. Qg3 {[%emt 0:00:30]} c4 {[%emt 0:00:30]} 12. Be2 {[%emt 0:00:30]} Nh6 {[%emt 0:00:30]} 13. Bxh6 {[%emt 0:00:30]} Rxh6 {[%emt 0:00:30]} 14. Nd1 {[%emt 0:00:30]} b5 {[%emt 0:00:30]} 15. c3 {[%emt 0:00:30]} g6 {[%emt 0:00:30]} 16. Nd2 {[%emt 0:00:30]} Ke8 {[%emt 0:00:30]} 17. Ne3 {[%emt 0:00:30]} Kd7 {[%emt 0:00:30]} 18. Qh3 {[%emt 0:00:30]} Kc7 {[%emt 0:00:30]} 19. g4 {[%emt 0:00:30]} Bd7 {[%emt 0:00:30]} 20. f4 {[%emt 0:00:30]} Qh8 {[%emt 0:00:30]} 21. gxh5 {[%emt 0:00:30]} Rg8 {[%emt 0:00:30]} 22. Kh1 {[%emt 0:00:30]} gxh5 {[%emt 0:00:30]} 23. f5 {[%emt 0:00:30]} Bg5 {[%emt 0:00:30]} 24. fxe6 {[%emt 0:00:30]} Bxe6 {[%emt 0:00:30]} 25. Qf3 {[%emt 0:00:30]} Rd8 {[%emt 0:00:30]} 26. Rae1 {[%emt 0:00:30]} Rg6 {[%emt 0:00:30]} 27. Bd1 {[%emt 0:00:30]} Qh6 {[%emt 0:00:30]} 28. Bc2 {[%emt 0:00:30]} Rg7 {[%emt 0:00:30]} 29. Nb1 {[%emt 0:00:30]} Ne7 {[%emt 0:00:30]} 30. Nf5 {[%emt 0:00:30]} Bxf5 {[%emt 0:00:30]} 31. Bxf5 {[%emt 0:00:30]} Rdg8 {[%emt 0:00:30]} 32. Bh3 {[%emt 0:00:30]} Qh7 {[%emt 0:00:30]} 33. Rg1 {[%emt 0:00:30]} Bh4 {[%emt 0:00:30]} 34. Rxg7 {[%emt 0:00:30]} Rxg7 {[%emt 0:00:30]} 35. Rf1 {[%emt 0:00:30]} Bg5 {[%emt 0:00:30]} 36. a4 {[%emt 0:00:30]} bxa4 {[%emt 0:00:30]} 37. Na3 {[%emt 0:00:30]} Qd3 {[%emt 0:00:30]} 38. Bg2 {[%emt 0:00:30]} h4 {[%emt 0:00:30]} 39. h3 {[%emt 0:00:30]} Qxf3 {[%emt 0:00:30]} 40. Rxf3 {[%emt 0:00:30]} Bc1 {[%emt 0:00:30]} 41. Rf2 {[%emt 0:00:30]} Kd7 {[%emt 0:00:30]} 42. Rc2 {[%emt 0:00:30]} Be3 {[%emt 0:00:30]} 43. Nb1 {[%emt 0:00:30]} Nf5 {[%emt 0:00:30]} 44. Nd2 {[%emt 0:00:30]} Ng3+ {[%emt 0:00:30]} 45. Kh2 Bf4 {[%emt 0:00:30]} 46. Kg1 {[%emt 0:01:00]} Nf5 {[%emt 0:00:30]} 47. Nf1 {[%emt 0:00:30]} Ke6 {[%emt 0:00:30]} 48. Kh1 {[%emt 0:00:30]} Ng3+ {[%emt 0:00:30]} 49. Kg1 {[%emt 0:00:30]} Nxf1 {[%emt 0:00:30]} 50. Kxf1 {[%emt 0:00:30]} Rg8 {[%emt 0:00:30]} 51. Rf2 {[%emt 0:00:30]} Bg5 {[%emt 0:00:30]} 52. Re2 {[%emt 0:00:30]} Rb8 {[%emt 0:00:30]} 53. Rc2 {[%emt 0:00:30]} Rb3 {[%emt 0:00:30]} 54. Bf3 {[%emt 0:00:30]} a3 {[%emt 0:00:30]} 55. bxa3 {[%emt 0:00:30]} Rxa3 {[%emt 0:00:30]} 56. Bg4+ {[%emt 0:00:30]} Ke7 {[%emt 0:00:30]} 57. Bf3 {[%emt 0:00:30]} Ra5 {[%emt 0:00:30]} 58. Rb2 {[%emt 0:00:30]} Ke6 {[%emt 0:00:30]} 59. Bg4+ {[%emt 0:00:30]} Ke7 {[%emt 0:00:30]} 60. Rb7+ {[%emt 0:00:30]} Kf8 {[%emt 0:00:30]} 61. Bh5 {[%emt 0:00:30]} Be7 {[%emt 0:00:30]} 62. Rb8+ {[%emt 0:00:30]} Kg7 {[%emt 0:00:30]} 63. Rb7 {[%emt 0:00:30]} Ra1+ {[%emt 0:00:30]} 64. Ke2 {[%emt 0:00:30]} Kf8 {[%emt 0:00:30]} 65. Rb8+ {[%emt 0:00:30]} Kg7 {[%emt 0:00:30]} 66. Rb7 {[%emt 0:00:30]} Kf8 {[%emt 0:00:30]} 67. e6 {[%emt 0:00:30]} 1/2-1/2

[Event "Fall GM Norm Invitational 2020"]
[Site "Charlotte"]
[Date "2020.10.01"]
[Round "1.5"]
[White "Niemann, Hans Moke"]
[Black "Daggupati, Balaji"]
[Result "1-0"]
[ECO "A09"]
[WhiteElo "2465"]
[BlackElo "2331"]
[Annotator "ChessBase"]
[PlyCount "53"]
[EventDate "2020.09.30"]
[EventType "tourn"]
[EventCountry "USA"]
[SourceTitle "playchess.com"]
[Source "ChessBase"]
[SourceQuality "1"]
[TimeControl "5400+30"]

1. Nf3 {[%emt 1:30:30]} d5 {[%emt 1:30:30]} 2. c4 {[%emt 0:00:30]} d4 {[%emt 0:00:30]} 3. b4 {[%emt 0:00:30]} Bg4 {[%emt 0:00:30]} 4. Qb3 {[%emt 0:00:30]} c6 {[%emt 0:00:30]} 5. g3 {[%emt 0:00:30]} d3 {[%emt 0:00:30]} 6. h3 {[%emt 0:00:30]} Bh5 {[%emt 0:00:30]} 7. Bg2 {[%emt 0:00:30]} dxe2 {[%emt 0:00:30]} 8. Nc3 {[%emt 0:00:30]} Nd7 {[%emt 0:00:30]} 9. d4 {[%emt 0:00:30]} e5 {[%emt 0:00:30]} 10. g4 {[%emt 0:00:30]} exd4 {[%emt 0:00:30]} 11. Nxd4 {[%emt 0:00:30]} Bg6 {[%emt 0:00:30]} 12. Ncxe2 {[%emt 0:00:30]} h5 {[%emt 0:00:30]} 13. g5 {[%emt 0:00:30]} c5 {[%emt 0:00:30]} 14. Nb5 {[%emt 0:00:30]} a6 {[%emt 0:00:30]} 15. Qe3+ {[%emt 0:00:30]} Be7 {[%emt 0:00:30]} 16. Nd6+ {[%emt 0:00:30]} Kf8 {[%emt 0:00:30]} 17. Nxb7 {[%emt 0:00:30]} Qc7 {[%emt 0:00:30]} 18. O-O {[%emt 0:00:30]} Re8 {[%emt 0:00:30]} 19. Nf4 {[%emt 0:00:30]} Bf5 {[%emt 0:00:30]} 20. Re1 {[%emt 0:00:30]} cxb4 {[%emt 0:00:30]} 21. Bb2 {[%emt 0:00:30]} Rh7 {[%emt 0:00:30]} 22. Rad1 {[%emt 0:00:30]} Qb8 {[%emt 0:00:30]} 23. Rd5 {[%emt 0:00:30]} g6 {[%emt 0:00:30]} 24. Rxf5 {[%emt 0:00:30]} gxf5 {[%emt 0:00:30]} 25. g6 {[%emt 0:00:30]} fxg6 {[%emt 0:00:30]} 26. Nxg6+ {[%emt 0:00:30]} Kf7 {[%emt 0:00:30]} 27. Qe6# {[%emt 0:00:30]} 1-0

[Event "Fall GM Norm Invitational 2020"]
[Site "Charlotte"]
[Date "2020.10.01"]
[Round "2.1"]
[White "Gauri, Shankar"]
[Black "Ostrovskiy, Aleksandr"]
[Result "0-1"]
[ECO "D13"]
[WhiteElo "2353"]
[BlackElo "2427"]
[Annotator "ChessBase"]
[PlyCount "76"]
[EventDate "2020.09.30"]
[EventType "tourn"]
[EventCountry "USA"]
[SourceTitle "playchess.com"]
[Source "ChessBase"]
[SourceQuality "1"]
[TimeControl "5400+30"]

1. Nf3 {[%emt 1:30:30]} d5 {[%emt 1:30:30]} 2. c4 {[%emt 0:00:30]} c6 {[%emt 0:00:30]} 3. cxd5 {[%emt 0:00:30]} cxd5 {[%emt 0:00:30]} 4. d4 {[%emt 0:00:30]} Nf6 {[%emt 0:00:30]} 5. Nc3 {[%emt 0:00:30]} Nc6 {[%emt 0:00:30]} 6. Bf4 {[%emt 0:00:30]} a6 {[%emt 0:00:30]} 7. Rc1 {[%emt 0:00:30]} Bf5 {[%emt 0:00:30]} 8. e3 {[%emt 0:00:30]} Rc8 {[%emt 0:00:30]} 9. Be2 {[%emt 0:00:30]} e6 {[%emt 0:00:30]} 10. O-O {[%emt 0:00:30]} Nd7 {[%emt 0:00:30]} 11. Na4 {[%emt 0:00:30]} Be7 {[%emt 0:00:30]} 12. a3 {[%emt 0:00:30]} g5 {[%emt 0:00:30]} 13. Bg3 {[%emt 0:00:30]} h5 {[%emt 0:00:30]} 14. h3 {[%emt 0:00:30]} h4 {[%emt 0:00:30]} 15. Bh2 {[%emt 0:00:30]} g4 {[%emt 0:00:30]} 16. hxg4 {[%emt 0:00:30]} Bxg4 {[%emt 0:00:30]} 17. Ne5 {[%emt 0:00:30]} Bxe2 {[%emt 0:00:30]} 18. Qxe2 {[%emt 0:00:30]} Ncxe5 {[%emt 0:00:30]} 19. dxe5 {[%emt 0:00:30]} b5 {[%emt 0:00:30]} 20. Nc3 {[%emt 0:00:30]} Rg8 {[%emt 0:00:30]} 21. Kh1 {[%emt 0:00:30]} Rc4 {[%emt 0:00:30]} 22. e4 {[%emt 0:00:30]} d4 {[%emt 0:00:30]} 23. Na2 {[%emt 0:00:30]} Nc5 {[%emt 0:00:30]} 24. Rxc4 {[%emt 0:00:30]} d3 {[%emt 0:00:30]} 25. Qe3 {[%emt 0:00:30]} bxc4 {[%emt 0:00:30]} 26. f4 {[%emt 0:00:30]} Nb3 {[%emt 0:00:30]} 27. f5 {[%emt 0:00:30]} Qd4 {[%emt 0:00:30]} 28. Qxd4 {[%emt 0:00:30]} Nxd4 {[%emt 0:00:30]} 29. Nc3 {[%emt 0:00:30]} Rg4 {[%emt 0:00:30]} 30. Bg1 {[%emt 0:00:30]} Ne2 {[%emt 0:00:30]} 31. Kh2 {[%emt 0:00:30]} Nxc3 {[%emt 0:00:30]} 32. bxc3 {[%emt 0:00:30]} Rxe4 {[%emt 0:00:30]} 33. f6 {[%emt 0:00:30]} Bxa3 {[%emt 0:00:30]} 34. Bd4 {[%emt 0:00:30]} d2 {[%emt 0:00:30]} 35. Rb1 {[%emt 0:00:30]} Rxd4 {[%emt 0:00:30]} 36. cxd4 {[%emt 0:00:30]} Bc1 {[%emt 0:00:30]} 37. Rb8+ {[%emt 0:00:30]} Kd7 38. Rb7+ {[%emt 0:00:30]} Kc6 {[%emt 0:01:00]} 0-1

[Event "Fall GM Norm Invitational 2020"]
[Site "Charlotte"]
[Date "2020.10.01"]
[Round "2.2"]
[White "Liang, Jason"]
[Black "Niemann, Hans Moke"]
[Result "1/2-1/2"]
[ECO "C70"]
[WhiteElo "2367"]
[BlackElo "2465"]
[Annotator "ChessBase"]
[PlyCount "182"]
[EventDate "2020.09.30"]
[EventType "tourn"]
[EventCountry "USA"]
[SourceTitle "playchess.com"]
[Source "ChessBase"]
[SourceQuality "1"]
[TimeControl "5400+30"]

1. e4 {[%emt 1:30:30]} e5 {[%emt 1:30:30]} 2. Nf3 {[%emt 0:00:30]} Nc6 {[%emt 0:00:30]} 3. Bb5 {[%emt 0:00:30]} g6 {[%emt 0:00:30]} 4. c3 {[%emt 0:00:30]} a6 {[%emt 0:00:30]} 5. Ba4 {[%emt 0:00:30]} Bg7 {[%emt 0:00:30]} 6. d4 {[%emt 0:00:30]} exd4 {[%emt 0:00:30]} 7. cxd4 {[%emt 0:00:30]} b5 {[%emt 0:00:30]} 8. Bb3 {[%emt 0:00:30]} Na5 {[%emt 0:00:30]} 9. d5 {[%emt 0:00:30]} Nxb3 {[%emt 0:00:30]} 10. axb3 {[%emt 0:00:30]} d6 {[%emt 0:00:30]} 11. Nc3 {[%emt 0:00:30]} b4 {[%emt 0:00:30]} 12. Na2 {[%emt 0:00:30]} Rb8 {[%emt 0:00:30]} 13. Bg5 {[%emt 0:00:30]} f6 {[%emt 0:00:30]} 14. Bd2 {[%emt 0:00:30]} a5 {[%emt 0:00:30]} 15. Nc1 {[%emt 0:00:30]} Ne7 {[%emt 0:00:30]} 16. O-O {[%emt 0:00:30]} O-O {[%emt 0:00:30]} 17. Rxa5 {[%emt 0:00:30]} c5 {[%emt 0:00:30]} 18. Ra7 {[%emt 0:00:30]} Rb7 {[%emt 0:00:30]} 19. Rxb7 {[%emt 0:00:30]} Bxb7 {[%emt 0:00:30]} 20. Ne2 {[%emt 0:00:30]} g5 {[%emt 0:00:30]} 21. Ng3 {[%emt 0:00:30]} h6 {[%emt 0:00:30]} 22. h4 {[%emt 0:00:30]} Bc8 {[%emt 0:00:30]} 23. Nh2 {[%emt 0:00:30]} f5 {[%emt 0:00:30]} 24. exf5 {[%emt 0:00:30]} gxh4 {[%emt 0:00:30]} 25. Nh5 {[%emt 0:00:30]} Nxf5 {[%emt 0:00:30]} 26. Re1 {[%emt 0:00:30]} Qd7 {[%emt 0:00:30]} 27. Qg4 {[%emt 0:00:30]} Qf7 {[%emt 0:00:30]} 28. Nxg7 {[%emt 0:00:30]} Qxg7 {[%emt 0:00:30]} 29. Ra1 {[%emt 0:00:30]} Kh7 {[%emt 0:00:30]} 30. Qxg7+ {[%emt 0:00:30]} Kxg7 {[%emt 0:00:30]} 31. Bf4 {[%emt 0:00:30]} Re8 {[%emt 0:00:30]} 32. Nf1 {[%emt 0:00:30]} Re4 {[%emt 0:00:30]} 33. Bh2 {[%emt 0:00:30]} Kg6 {[%emt 0:00:30]} 34. Nd2 {[%emt 0:00:30]} Rg4 {[%emt 0:00:30]} 35. f3 {[%emt 0:00:30]} Rd4 {[%emt 0:00:30]} 36. Nc4 {[%emt 0:00:30]} Bb7 {[%emt 0:00:30]} 37. Nxd6 {[%emt 0:00:30]} Nxd6 {[%emt 0:00:30]} 38. Bxd6 {[%emt 0:00:30]} Rxd5 {[%emt 0:00:30]} 39. Bf4 {[%emt 0:00:30]} Rd3 {[%emt 0:00:30]} 40. Ra7 {[%emt 0:00:30]} Bd5 {[%emt 0:00:30]} 41. Rd7 {[%emt 0:00:30]} Kf5 {[%emt 0:00:30]} 42. Bxh6 {[%emt 0:00:30]} Ke6 {[%emt 0:00:30]} 43. Rc7 {[%emt 0:00:30]} Rxb3 {[%emt 0:00:30]} 44. Rxc5 {[%emt 0:00:30]} Rxb2 {[%emt 0:00:30]} 45. Bg7 {[%emt 0:00:30]} Rd2 {[%emt 0:00:30]} 46. Rb5 {[%emt 0:00:30]} b3 {[%emt 0:00:30]} 47. Rb4 {[%emt 0:00:30]} h3 {[%emt 0:00:30]} 48. gxh3 {[%emt 0:00:30]} Rd3 {[%emt 0:00:30]} 49. h4 {[%emt 0:00:30]} Rxf3 {[%emt 0:00:30]} 50. Kh2 {[%emt 0:00:30]} Rf1 {[%emt 0:00:30]} 51. Rb6+ {[%emt 0:00:30]} Kf7 {[%emt 0:00:30]} 52. Be5 {[%emt 0:00:30]} Rf5 {[%emt 0:00:30]} 53. Ba1 {[%emt 0:00:30]} Rf1 {[%emt 0:00:30]} 54. Be5 {[%emt 0:00:30]} Be6 {[%emt 0:00:30]} 55. Kg2 {[%emt 0:00:30]} Rf5 {[%emt 0:00:30]} 56. Bb2 {[%emt 0:00:30]} Rf4 {[%emt 0:00:30]} 57. h5 {[%emt 0:00:30]} Rg4+ {[%emt 0:00:30]} 58. Kf3 {[%emt 0:00:30]} Rh4 {[%emt 0:00:30]} 59. Rb7+ {[%emt 0:00:30]} Ke8 {[%emt 0:00:30]} 60. Rb5 {[%emt 0:00:30]} Rh2 {[%emt 0:00:30]} 61. Bg7 {[%emt 0:00:30]} Bc4 {[%emt 0:00:30]} 62. Rb8+ {[%emt 0:00:30]} Kd7 {[%emt 0:00:30]} 63. h6 {[%emt 0:00:30]} Kc6 {[%emt 0:00:30]} 64. Kg3 {[%emt 0:00:30]} Rh1 {[%emt 0:00:30]} 65. Kg2 {[%emt 0:00:30]} Rh5 {[%emt 0:00:30]} 66. Kf3 {[%emt 0:00:30]} Bb5 {[%emt 0:00:30]} 67. Kg4 {[%emt 0:00:30]} Rh2 {[%emt 0:00:30]} 68. Kg3 {[%emt 0:00:30]} Rh1 {[%emt 0:00:30]} 69. Kg2 {[%emt 0:00:30]} Rh5 {[%emt 0:00:30]} 70. Kg3 {[%emt 0:00:30]} Kc5 {[%emt 0:00:30]} 71. Rc8+ {[%emt 0:00:30]} Kb4 {[%emt 0:00:30]} 72. Bc3+ {[%emt 0:00:30]} Ka3 {[%emt 0:00:30]} 73. Ra8+ {[%emt 0:00:30]} Ba4 {[%emt 0:00:30]} 74. Bg7 {[%emt 0:00:30]} Kb4 {[%emt 0:00:30]} 75. Rb8+ {[%emt 0:00:30]} Bb5 {[%emt 0:00:30]} 76. Rc8 {[%emt 0:00:30]} Rh1 {[%emt 0:00:30]} 77. Kg2 {[%emt 0:00:30]} Rh5 {[%emt 0:00:30]} 78. Kg3 {[%emt 0:00:30]} Ba4 {[%emt 0:00:30]} 79. Rb8+ {[%emt 0:00:30]} Kc5 {[%emt 0:00:30]} 80. Rc8+ {[%emt 0:00:30]} Bc6 {[%emt 0:00:30]} 81. Rb8 {[%emt 0:00:30]} Bd5 {[%emt 0:00:30]} 82. Kg4 {[%emt 0:00:30]} Rh1 {[%emt 0:00:30]} 83. Kf5 {[%emt 0:00:30]} Bc4 {[%emt 0:00:30]} 84. Rc8+ {[%emt 0:00:30]} Kd5 {[%emt 0:00:30]} 85. Rd8+ {[%emt 0:00:30]} Kc5 {[%emt 0:00:30]} 86. Rc8+ {[%emt 0:00:30]} Kb4 {[%emt 0:00:30]} 87. Rb8+ {[%emt 0:00:30]} Bb5 {[%emt 0:00:30]} 88. Kg6 {[%emt 0:00:30]} Rg1+ {[%emt 0:00:30]} 89. Kf7 {[%emt 0:00:30]} Rf1+ {[%emt 0:00:30]} 90. Kg8 {[%emt 0:00:30]} Ka4 {[%emt 0:00:30]} 91. Ra8+ {[%emt 0:00:30]} Kb4 {[%emt 0:00:30]} 1/2-1/2